bitfinex/quotes_SOLUSD_20230703
["timestamp","ask_amount","ask_price","bid_price","bid_amount"]
[1688402173144,22.182,19.07,19.057,79.34]
[1688402173347,57.082,19.078,19.058,75.0]
[1688402173648,136.822,19.08,19.064,183.532]
[1688402173649,57.076,19.08,19.064,183.532]
[1688402173850,22.172,19.078,19.065,97.8958]
[1688402174052,22.172,19.078,19.068,79.29]
[1688402174551,104.123,19.084,19.068,79.29]
[1688402174855,22.171,19.079,19.068,79.29]
[1688402175847,22.171,19.079,19.069,20.0]
[1688402176050,57.066,19.083,19.069,20.0]
[1688402176051,22.167,19.083,19.074,79.268]
[1688402176232,22.167,19.083,19.074,22.175]
[1688402178040,104.077,19.092,19.074,22.175]
[1688402178343,22.166,19.083,19.074,22.175]
[1688402178757,22.166,19.084,19.074,22.175]
[1688402182159,57.052,19.09,19.074,22.175]
[1688402182358,161.135,19.09,19.074,22.175]
[1688402182660,57.048,19.09,19.074,22.175]
[1688402182842,22.162,19.087,19.079,22.17]
[1688402183155,22.162,19.087,19.078,22.171]
[1688402183342,22.162,19.087,19.079,22.17]
[1688402183656,22.162,19.087,19.077,22.172]
[1688402189458,22.162,19.087,19.077,79.256]
[1688402189856,57.045,19.091,19.077,79.256]
[1688402190448,22.161,19.087,19.077,79.256]
[1688402193544,57.04,19.092,19.077,79.256]
[1688402193857,22.161,19.088,19.077,79.256]
[1688402194551,57.04,19.092,19.081,79.24]
[1688402194856,57.034,19.094,19.081,79.24]
[1688402195057,57.034,19.094,19.082,92.0492]
[1688402195360,22.157,19.091,19.085,22.163]
[1688402195859,104.056,19.096,19.085,22.163]
[1688402196037,22.157,19.091,19.085,22.163]
[1688402197759,57.032,19.095,19.085,22.163]
[1688402197963,22.157,19.091,19.085,22.163]
[1688402198468,22.157,19.091,19.082,92.0492]
[1688402198650,22.157,19.091,19.083,22.165]
[1688402198963,22.157,19.091,19.082,92.0492]
[1688402199170,22.157,19.091,19.082,114.2152]
[1688402205575,22.157,19.091,19.082,22.166]
[1688402205779,32.58,19.09,19.075,57.09]
[1688402206078,183.332,19.086,19.076,22.173]
[1688402206273,183.332,19.086,19.075,22.174]
[1688402206953,183.332,19.086,19.073,22.177]
[1688402207158,55.0,19.085,19.073,22.177]
[1688402207359,79.239,19.082,19.073,22.177]
[1688402207559,79.239,19.082,19.071,91.7923]
[1688402207753,79.239,19.082,19.072,20.0]
[1688402208469,32.75,19.08,19.067,22.184]
[1688402208771,32.75,19.08,19.066,22.185]
[1688402208772,183.422,19.077,19.066,22.185]
[1688402208953,22.177,19.073,19.066,22.185]
[1688402209365,22.177,19.073,19.065,114.5501]
[1688402210469,22.177,19.073,19.065,92.3641]
[1688402210664,55.0,19.072,19.065,92.3641]
[1688402210867,22.181,19.07,19.06,57.133]
[1688402211064,22.181,19.07,19.061,20.0]
[1688402212162,22.181,19.07,19.065,22.187]
[1688402212581,57.088,19.076,19.065,22.187]
[1688402212874,22.178,19.073,19.065,22.187]
[1688402213172,22.178,19.073,19.06,154.4407]
[1688402213372,22.182,19.07,19.063,22.188]
[1688402214774,112.087,19.077,19.063,22.188]
[1688402214963,55.0,19.076,19.063,22.188]
[1688402215286,22.178,19.073,19.063,22.188]
[1688402215881,22.177,19.074,19.063,22.188]
[1688402217373,79.27,19.074,19.063,22.188]
[1688402217577,79.27,19.074,19.057,57.144]
[1688402217578,55.0,19.073,19.057,57.144]
[1688402217885,79.293,19.069,19.056,22.196]
[1688402218172,79.311,19.065,19.055,112.8693]
[1688402218363,79.311,19.065,19.055,22.198]
[1688402219469,22.188,19.065,19.055,22.198]
[1688402220176,79.308,19.065,19.055,22.198]
[1688402220477,75.0,19.064,19.049,57.168]
[1688402220775,112.079,19.06,19.045,115.1683]
[1688402220975,183.629,19.055,19.044,22.211]
[1688402221457,55.0,19.054,19.041,92.9593]
[1688402221655,79.368,19.051,19.042,22.212]
[1688402221858,22.204,19.051,19.042,22.212]
[1688402222057,22.204,19.051,19.042,79.401]
[1688402222281,22.203,19.052,19.042,79.401]
[1688402223074,22.202,19.053,19.042,79.401]
[1688402225960,22.202,19.053,19.042,22.212]
[1688402226686,22.2,19.054,19.042,79.401]
[1688402226971,105.075408,19.06,19.042,79.401]
[1688402226972,57.139,19.059,19.042,79.401]
[1688402227156,22.195,19.059,19.042,79.401]
[1688402227358,57.123,19.064,19.043,20.0]
[1688402227583,22.192,19.061,19.043,20.0]
[1688402227784,147.71219922,19.07,19.048,183.689]
[1688402227957,57.114,19.068,19.05,32.72]
[1688402228160,22.187,19.065,19.055,183.624]
[1688402228373,57.123,19.07,19.055,183.624]
[1688402228575,57.101,19.072,19.056,55.0]
[1688402228874,22.183,19.069,19.06,79.325]
[1688402229283,22.183,19.069,19.06,22.192]
[1688402229779,22.183,19.069,19.058,22.194]
[1688402229971,22.187,19.065,19.058,22.194]
[1688402230481,22.187,19.065,19.05,32.75]
[1688402231077,10.83719922,19.07,19.051,55.0]
[1688402231259,22.184,19.068,19.051,55.0]
[1688402233273,33.02119922,19.068,19.053,22.2]
[1688402234866,22.184,19.068,19.053,22.2]
[1688402235277,22.184,19.068,19.051,91.6386]
[1688402235566,33.02119922,19.068,19.053,22.201]
[1688402235765,33.02119922,19.068,19.052,22.201]
[1688402236084,65.83719922,19.067,19.051,91.6386]
[1688402236272,183.555,19.063,19.051,91.6386]
[1688402237081,183.555,19.063,19.05,22.204]
[1688402237389,183.555,19.063,19.051,22.203]
[1688402238587,22.19,19.063,19.051,22.203]
[1688402238765,22.19,19.063,19.052,55.0]
[1688402239069,22.19,19.063,19.055,22.198]
[1688402241264,22.19,19.063,19.051,98.5442]
[1688402242087,22.19,19.063,19.054,22.199]
[1688402244971,22.19,19.063,19.051,98.5442]
[1688402245584,55.0,19.062,19.04,89.913]
[1688402245794,183.621,19.056,19.046,22.208]
[1688402246095,135.7529473,19.07,19.046,79.385]
[1688402246273,32.48,19.08,19.05,32.75]
[1688402246274,55.94885966,19.076,19.05,32.75]
[1688402246469,22.19,19.062,19.056,22.197]
[1688402246993,22.19,19.063,19.056,22.197]
[1688402247477,22.189,19.064,19.056,22.197]
[1688402248178,57.112,19.068,19.056,22.197]
[1688402248384,22.189,19.064,19.056,22.197]
[1688402248882,22.184,19.068,19.056,22.197]
[1688402249088,57.079,19.079,19.057,75.0]
[1688402249385,57.079,19.079,19.063,183.542]
[1688402249581,57.079,19.079,19.064,152.2003]
[1688402249780,22.175,19.076,19.068,79.293]
[1688402250896,22.174,19.076,19.068,79.293]
[1688402251074,22.173,19.078,19.068,79.293]
[1688402253968,161.199,19.084,19.068,79.293]
[1688402253969,22.171,19.079,19.068,79.293]
[1688402254675,57.067,19.083,19.068,79.293]
[1688402254985,22.169,19.08,19.068,79.293]
[1688402256981,55.0,19.079,19.068,22.183]
[1688402257176,183.429,19.076,19.065,22.186]
[1688402257372,79.278,19.072,19.065,22.186]
[1688402257579,79.278,19.072,19.064,119.3873]
[1688402258187,79.278,19.072,19.064,22.187]
[1688402258485,22.179,19.072,19.064,22.187]
[1688402259081,57.088,19.076,19.064,22.187]
[1688402259082,22.178,19.073,19.064,22.187]
[1688402261095,57.079,19.079,19.064,22.187]
[1688402261283,22.174,19.076,19.064,22.187]
[1688402265100,22.174,19.077,19.065,55.0]
[1688402265300,22.174,19.077,19.068,183.497]
[1688402265677,104.126,19.083,19.068,183.497]
[1688402265678,22.169,19.08,19.068,183.497]
[1688402265883,22.168,19.082,19.068,183.497]
[1688402266082,57.053,19.088,19.069,55.0]
[1688402266385,22.161,19.087,19.074,183.435]
[1688402266581,22.161,19.087,19.075,81.2786]
[1688402266901,22.161,19.087,19.078,22.171]
[1688402269109,55.0,19.086,19.072,57.097]
[1688402269407,32.48,19.08,19.065,151.2869]
[1688402269582,22.175,19.075,19.068,22.182]
[1688402269778,22.175,19.076,19.068,22.182]
[1688402270693,22.175,19.076,19.065,94.1689]
[1688402270881,22.175,19.076,19.066,22.185]
[1688402272699,22.175,19.076,19.065,94.1689]
[1688402273086,22.175,19.076,19.065,116.3549]
[1688402273287,22.175,19.076,19.065,22.186]
[1688402278109,22.175,19.076,19.066,55.0]
[1688402278299,22.174,19.077,19.069,79.29]
[1688402278503,22.167,19.083,19.07,55.0]
[1688402278714,22.167,19.083,19.076,79.261]
[1688402279014,22.165,19.084,19.076,79.261]
[1688402279208,22.165,19.085,19.076,79.261]
[1688402279791,104.078,19.092,19.076,79.261]
[1688402279792,57.047,19.09,19.076,79.261]
[1688402280392,22.161,19.088,19.076,79.261]
[1688402281193,22.161,19.088,19.076,22.174]
[1688402283298,22.16,19.089,19.077,55.0]
[1688402283512,22.16,19.089,19.08,79.242]
[1688402284408,22.159,19.09,19.08,169.8552]
[1688402285090,22.159,19.09,19.08,112.7822]
[1688402290820,22.159,19.09,19.08,22.169]
[1688402291000,22.159,19.09,19.081,20.0]
[1688402291316,57.036,19.093,19.083,22.165]
[1688402291512,22.158,19.09,19.083,22.165]
[1688402291709,22.158,19.091,19.083,22.165]
[1688402292224,22.156,19.092,19.083,22.165]
[1688402292404,22.157,19.091,19.083,22.165]
[1688402294419,22.157,19.091,19.078,57.08]
[1688402294622,55.0,19.09,19.082,22.166]
[1688402294808,22.16,19.088,19.082,22.166]
[1688402295917,22.16,19.088,19.081,22.167]
[1688402296117,22.16,19.088,19.08,22.169]
[1688402299218,22.16,19.088,19.07,104.19]
[1688402299421,55.0,19.087,19.072,75.0]
[1688402299610,22.166,19.083,19.076,22.174]
[1688402302025,22.166,19.083,19.073,57.094]
[1688402302613,22.166,19.083,19.07,104.19]
[1688402302810,55.0,19.082,19.075,22.175]
[1688402303005,22.169,19.08,19.075,22.175]
[1688402304031,55.0,19.082,19.075,22.175]
[1688402304216,161.171,19.086,19.075,22.175]
[1688402304413,22.168,19.082,19.075,22.175]
[1688402306236,22.168,19.082,19.071,57.1]
[1688402306408,22.172,19.078,19.072,22.178]
[1688402307915,22.172,19.078,19.071,22.179]
[1688402309339,22.17,19.08,19.071,22.179]
[1688402309632,22.168,19.081,19.071,22.179]
[1688402310016,22.167,19.082,19.077,22.172]
[1688402310919,22.167,19.083,19.077,22.172]
[1688402311336,57.052,19.088,19.077,22.172]
[1688402313336,22.164,19.085,19.077,22.172]
[1688402314819,57.052,19.088,19.077,22.172]
[1688402315413,22.164,19.085,19.077,22.172]
[1688402316934,79.224,19.085,19.077,22.172]
[1688402318543,22.164,19.085,19.077,22.172]
[1688402325845,22.162,19.087,19.077,22.172]
[1688402326029,22.161,19.088,19.078,55.0]
[1688402326232,22.161,19.088,19.081,22.168]
[1688402326546,22.157,19.092,19.082,55.0]
[1688402326721,22.158,19.091,19.084,22.164]
[1688402326927,22.157,19.091,19.084,22.164]
[1688402330248,57.031,19.095,19.084,79.227]
[1688402331050,67.86819922,19.095,19.084,79.227]
[1688402331229,22.157,19.091,19.084,79.227]
[1688402333449,67.86819922,19.095,19.084,79.227]
[1688402333742,22.157,19.091,19.084,79.227]
[1688402334047,104.04,19.099,19.084,79.227]
[1688402334224,22.152,19.095,19.084,79.227]
[1688402342039,22.152,19.095,19.084,22.164]
[1688402342561,32.98919922,19.095,19.084,22.164]
[1688402343648,22.157,19.091,19.084,22.164]
[1688402347143,22.157,19.091,19.084,79.227]
[1688402348056,55.0,19.09,19.082,22.166]
[1688402348259,79.217,19.087,19.077,90.7202]
[1688402348560,22.165,19.084,19.078,22.171]
[1688402349057,22.165,19.084,19.077,112.8922]
[1688402350860,22.165,19.084,19.076,22.173]
[1688402351849,22.165,19.084,19.075,22.174]
[1688402352063,55.0,19.083,19.074,22.176]
[1688402352355,79.243,19.081,19.073,22.176]
[1688402352561,22.172,19.078,19.073,22.176]
[1688402353061,22.172,19.078,19.072,22.178]
[1688402354445,57.068,19.083,19.072,22.178]
[1688402354748,22.172,19.078,19.072,22.178]
[1688402355947,57.064,19.084,19.072,22.178]
[1688402356147,20.0,19.083,19.072,22.178]
[1688402356353,22.168,19.082,19.072,22.178]
[1688402356661,22.168,19.082,19.075,22.174]
[1688402356966,22.167,19.083,19.075,22.174]
[1688402357165,22.165,19.084,19.075,22.174]
[1688402358866,79.228,19.084,19.075,22.174]
[1688402359055,22.165,19.084,19.075,22.174]
[1688402362562,57.049,19.089,19.075,22.174]
[1688402362950,57.049,19.089,19.076,55.0]
[1688402363150,22.163,19.086,19.079,22.169]
[1688402370568,104.082,19.091,19.079,22.169]
[1688402370774,22.164,19.085,19.079,22.169]
[1688402371071,22.163,19.086,19.079,22.169]
[1688402377466,79.22,19.086,19.075,97.5345]
[1688402378354,79.22,19.086,19.072,161.28]
[1688402378557,79.22,19.086,19.076,22.173]
[1688402382381,22.163,19.086,19.076,22.173]
[1688402384872,57.042,19.091,19.076,22.173]
[1688402385078,55.0,19.09,19.076,22.173]
[1688402385271,22.162,19.087,19.076,22.173]
[1688402387470,22.162,19.087,19.077,55.0]
[1688402387670,22.162,19.087,19.08,22.169]
[1688402390995,55.0,19.086,19.074,57.092]
[1688402391186,22.167,19.083,19.076,22.173]
[1688402392092,22.167,19.083,19.072,57.098]
[1688402393091,22.167,19.083,19.076,22.174]
[1688402394695,22.165,19.084,19.076,22.174]
[1688402396284,22.164,19.085,19.076,22.174]
[1688402398304,57.047,19.09,19.076,22.174]
[1688402398502,57.047,19.09,19.077,55.0]
[1688402398704,22.163,19.086,19.08,22.168]
[1688402401802,57.047,19.09,19.08,22.168]
[1688402401999,22.157,19.091,19.081,55.0]
[1688402402303,104.06,19.095,19.081,55.0]
[1688402402304,104.045,19.098,19.084,79.228]
[1688402402485,22.153,19.094,19.084,79.228]
[1688402403703,22.153,19.094,19.084,22.165]
[1688402409589,104.038,19.099,19.084,22.165]
[1688402409796,22.153,19.095,19.084,22.165]
[1688402409997,22.153,19.095,19.085,55.0]
[1688402410195,57.02,19.099,19.088,22.16]
[1688402410504,22.151,19.096,19.088,22.16]
[1688402416820,22.151,19.096,19.083,150.6726]
[1688402418109,22.151,19.096,19.085,22.162]
[1688402422997,22.151,19.096,19.086,55.0]
[1688402423202,22.151,19.096,19.089,22.159]
[1688402424822,22.151,19.096,19.088,22.159]
[1688402425019,22.151,19.096,19.087,22.16]
[1688402427616,22.151,19.096,19.088,55.0]
[1688402427819,22.151,19.096,19.09,22.157]
[1688402428296,22.151,19.096,19.088,55.0]
[1688402428496,22.151,19.096,19.084,57.062]
[1688402428704,22.151,19.096,19.086,22.161]
[1688402433917,22.151,19.096,19.089,22.158]
[1688402435515,22.151,19.096,19.088,22.159]
[1688402439024,22.151,19.096,19.089,55.0]
[1688402442014,22.151,19.096,19.086,22.162]
[1688402442221,22.151,19.096,19.087,55.0]
[1688402443510,22.151,19.096,19.083,93.6086]
[1688402444832,55.0,19.095,19.083,93.6086]
[1688402445036,183.275,19.092,19.083,93.6086]
[1688402445217,183.275,19.092,19.08,32.7]
[1688402445414,183.275,19.092,19.081,20.0]
[1688402446112,183.275,19.092,19.075,106.09699922]
[1688402446321,183.324,19.087,19.078,22.171]
[1688402446514,183.324,19.087,19.075,95.2598]
[1688402446718,183.324,19.087,19.076,22.173]
[1688402450236,183.324,19.087,19.075,117.4348]
[1688402450546,183.324,19.087,19.076,22.174]
[1688402451131,183.324,19.087,19.076,33.01119922]
[1688402451435,183.324,19.087,19.069,25.63848269]
[1688402451632,79.238,19.082,19.074,22.176]
[1688402451824,79.238,19.082,19.07,124.0953]
[1688402452029,79.238,19.082,19.071,20.0]
[1688402452831,79.238,19.082,19.072,55.0]
[1688402453223,79.238,19.082,19.073,22.176]
[1688402453850,22.168,19.082,19.073,79.272]
[1688402454139,22.168,19.082,19.076,22.174]
[1688402454323,22.168,19.082,19.077,55.0]
[1688402455241,22.168,19.082,19.077,77.173]
[1688402457638,22.167,19.083,19.077,77.173]
[1688402457942,32.69,19.09,19.077,77.173]
[1688402458137,22.16,19.089,19.084,22.164]
[1688402458335,57.037,19.093,19.084,22.164]
[1688402458730,22.157,19.091,19.084,22.164]
[1688402459340,57.031,19.095,19.084,22.164]
[1688402459740,22.156,19.092,19.084,22.164]
[1688402461655,22.156,19.092,19.087,22.161]
[1688402462124,96.44907224,19.098,19.087,22.161]
[1688402462329,22.154,19.094,19.087,22.161]
[1688402464829,22.154,19.094,19.088,77.16]
[1688402465225,22.154,19.094,19.088,55.0]
[1688402466938,22.154,19.094,19.087,55.0]
[1688402467150,22.154,19.094,19.087,77.16]
[1688402468033,22.154,19.094,19.087,55.0]
[1688402468232,22.154,19.094,19.087,77.161]
[1688402468435,22.154,19.094,19.08,89.764]
[1688402468739,22.154,19.094,19.082,22.166]
[1688402476152,22.154,19.094,19.083,55.0]
[1688402476448,22.154,19.094,19.086,79.218]
[1688402477966,22.154,19.094,19.086,22.162]
[1688402495051,22.154,19.094,19.087,55.0]
[1688402495263,22.154,19.094,19.088,22.159]
[1688402498465,22.154,19.094,19.087,77.16]
[1688402500174,22.154,19.094,19.086,22.161]
[1688402501263,22.154,19.094,19.087,55.0]
[1688402501460,22.154,19.094,19.089,22.159]
[1688402501765,22.154,19.094,19.087,55.0]
[1688402501766,22.154,19.094,19.088,22.159]
[1688402504271,22.154,19.094,19.087,55.0]
[1688402504469,22.154,19.094,19.087,77.161]
[1688402504666,22.154,19.094,19.087,55.0]
[1688402505267,22.154,19.094,19.085,22.163]
[1688402505578,22.154,19.094,19.086,55.0]
[1688402506160,22.154,19.094,19.086,77.162]
[1688402514066,79.187,19.094,19.086,77.162]
[1688402514265,79.187,19.094,19.086,55.0]
[1688402514671,79.187,19.094,19.08,162.70198847]
[1688402514672,79.187,19.094,19.08,32.64]
[1688402514870,79.187,19.094,19.083,22.165]
[1688402515967,79.187,19.094,19.084,55.0]
[1688402516171,79.187,19.094,19.085,22.162]
[1688402516669,79.187,19.094,19.081,20.0]
[1688402516875,79.187,19.094,19.081,42.167]
[1688402517067,79.187,19.094,19.079,82.6742]
[1688402517068,90.02419922,19.094,19.079,22.17]
[1688402517271,75.0,19.093,19.077,94.3378]
[1688402517467,183.305,19.089,19.079,22.17]
[1688402517667,183.305,19.089,19.077,94.3378]
[1688402518072,183.305,19.089,19.078,22.172]
[1688402519069,183.305,19.089,19.079,55.0]
[1688402519381,183.305,19.089,19.079,77.17]
[1688402519573,79.21,19.089,19.079,77.17]
[1688402520359,22.16,19.089,19.08,20.0]
[1688402520561,22.16,19.089,19.083,22.165]
[1688402520763,22.16,19.089,19.085,22.163]
[1688402521977,57.041,19.092,19.085,22.163]
[1688402521978,22.159,19.09,19.085,22.163]
[1688402523086,22.155,19.092,19.089,22.158]
[1688402523274,22.155,19.093,19.089,22.158]
[1688402526170,22.15,19.097,19.09,75.0]
[1688402526382,22.15,19.098,19.092,22.155]
[1688402526688,22.147,19.099,19.093,55.0]
[1688402526897,22.147,19.099,19.094,22.152]
[1688402527192,22.147,19.099,19.096,22.151]
[1688402528581,22.147,19.1,19.096,22.151]
[1688402529176,22.147,19.1,19.095,55.0]
[1688402529177,22.147,19.1,19.095,77.151]
[1688402530279,22.147,19.1,19.095,22.151]
[1688402530480,22.147,19.1,19.094,22.152]
[1688402530998,22.147,19.1,19.09,67.88119922]
[1688402531195,22.147,19.1,19.091,75.0]
[1688402532096,22.147,19.1,19.094,22.153]
[1688402532902,22.144,19.103,19.095,55.0]
[1688402533080,22.143,19.104,19.097,22.149]
[1688402540602,22.143,19.104,19.098,55.0]
[1688402540804,22.143,19.104,19.099,22.146]
[1688402543801,22.143,19.104,19.1,55.0]
[1688402543989,22.143,19.104,19.101,22.145]
[1688402545787,92.6269928,19.118,19.101,22.145]
[1688402546110,22.131,19.113,19.102,55.0]
[1688402546302,22.131,19.113,19.105,22.14]
[1688402546492,22.131,19.113,19.106,55.0]
[1688402546697,22.131,19.113,19.107,22.137]
[1688402547305,22.131,19.113,19.108,77.136]
[1688402547491,22.131,19.113,19.108,22.136]
[1688402548503,22.131,19.113,19.109,55.0]
[1688402548705,22.131,19.113,19.109,77.135]
[1688402549298,22.131,19.113,19.109,55.0]
[1688402549896,22.131,19.113,19.108,55.0]
[1688402550220,22.131,19.113,19.106,22.138]
[1688402550506,22.131,19.113,19.1,136.688]
[1688402550709,22.131,19.113,19.104,22.141]
[1688402550904,22.131,19.113,19.107,22.138]
[1688402551295,22.131,19.113,19.109,22.136]
[1688402551890,22.131,19.113,19.104,57.002]
[1688402552091,22.131,19.113,19.105,55.0]
[1688402552611,22.131,19.113,19.107,22.138]
[1688402554214,22.131,19.113,19.106,22.138]
[1688402555813,22.131,19.113,19.105,77.139]
[1688402556013,22.131,19.113,19.105,55.0]
[1688402556512,22.131,19.113,19.105,22.139]
[1688402556712,22.131,19.113,19.101,151.0501]
[1688402557011,22.131,19.113,19.102,55.0]
[1688402558208,22.131,19.113,19.105,22.14]
[1688402559507,22.131,19.113,19.108,22.137]
[1688402559812,32.66,19.12,19.108,22.137]
[1688402559813,22.129,19.116,19.108,22.137]
[1688402560002,22.129,19.116,19.109,55.0]
[1688402560317,22.129,19.116,19.111,22.133]
[1688402561107,22.129,19.116,19.11,22.133]
[1688402562799,22.129,19.116,19.109,22.135]
[1688402565909,22.129,19.116,19.108,22.136]
[1688402567304,22.129,19.116,19.109,55.0]
[1688402567504,22.129,19.116,19.109,77.135]
[1688402568319,22.129,19.116,19.109,55.0]
[1688402569508,22.129,19.116,19.109,77.136]
[1688402569702,22.129,19.116,19.109,55.0]
[1688402572818,22.129,19.116,19.109,77.135]
[1688402573522,22.129,19.116,19.105,22.14]
[1688402573728,22.129,19.116,19.104,22.141]
[1688402577232,22.129,19.116,19.105,55.0]
[1688402577419,22.129,19.116,19.108,22.136]
[1688402580112,22.129,19.116,19.105,159.0]
[1688402580113,22.129,19.116,19.111,22.133]
[1688402582129,22.129,19.116,19.11,22.133]
[1688402582913,22.129,19.116,19.112,22.132]
[1688402583314,22.126,19.118,19.115,22.128]
[1688402583609,22.126,19.118,19.114,22.13]
[1688402584030,22.126,19.118,19.111,20.0]
[1688402584221,22.126,19.118,19.114,22.13]
[1688402585535,56.948,19.123,19.114,22.13]
[1688402585728,103.881,19.128,19.115,55.0]
[1688402585932,22.118,19.125,19.118,22.124]
[1688402588629,22.118,19.125,19.114,56.973]
[1688402588936,22.118,19.125,19.118,22.125]
[1688402589642,51.63662546,19.133,19.118,22.125]
[1688402589643,103.849,19.134,19.119,55.0]
[1688402589826,22.112,19.13,19.125,22.117]
[1688402590144,22.112,19.13,19.126,55.0]
[1688402590621,22.112,19.13,19.126,77.115]
[1688402591422,22.112,19.13,19.122,56.947]
[1688402591632,22.112,19.13,19.125,22.117]
[1688402591847,22.112,19.13,19.12,111.1538]
[1688402592529,22.112,19.13,19.123,22.118]
[1688402593229,22.112,19.13,19.124,55.0]
[1688402593437,22.112,19.13,19.125,22.116]
[1688402594241,22.112,19.13,19.124,77.118]
[1688402594846,22.112,19.13,19.124,22.118]
[1688402595934,103.828,19.138,19.125,55.0]
[1688402596144,56.906,19.137,19.128,22.113]
[1688402596640,103.828,19.138,19.128,22.113]
[1688402596853,22.109,19.133,19.128,22.113]
[1688402600054,22.109,19.133,19.127,22.114]
[1688402600352,22.109,19.133,19.128,55.0]
[1688402600532,22.108,19.133,19.128,55.0]
[1688402600736,22.108,19.133,19.128,77.113]
[1688402603850,22.108,19.133,19.128,55.0]
[1688402604456,22.108,19.133,19.128,77.113]
[1688402606645,22.108,19.133,19.128,55.0]
[1688402607050,22.108,19.133,19.128,77.113]
[1688402611955,22.108,19.133,19.12,143.5738]
[1688402611956,79.025,19.133,19.12,143.5738]
[1688402612254,79.025,19.133,19.125,22.117]
[1688402613461,79.025,19.133,19.126,55.0]
[1688402613664,79.025,19.133,19.126,77.115]
[1688402616750,22.108,19.133,19.126,77.115]
[1688402617358,22.106,19.135,19.127,20.0]
[1688402617558,22.105,19.136,19.13,32.29]
[1688402617754,22.104,19.137,19.131,97.109]
[1688402618953,32.56,19.15,19.131,97.109]
[1688402619169,22.103,19.138,19.131,97.109]
[1688402619953,22.1,19.141,19.131,97.109]
[1688402621259,22.1,19.141,19.131,22.109]
[1688402621459,22.1,19.141,19.132,75.0]